Cogmind - Beta 11 X5 @@@ ROGUE MODE // 2021.07.06 @ 12:44:05 Player: AlmondRoll Result: Destroyed by as-71395 with Assembled Blade Performance ------------- Evolutions (0) 0 Regions Visited (4) 800 Robots Destroyed (18) 90 Value Destroyed (416) 416 Prototype IDs (25) 500 Alien Tech Used (0) 0 Bonus (285) 285 TOTAL SCORE: 2091 Bonus ------- Aligned with FarCom 300 Friendly Fire -15 Cogmind --------- Core Integrity 0/250 Matter 240/300 Energy 40/100 System Corruption 3% Temperature Warm (149) Movement Rolling (130) Ox2 Location -9/Mines Parts ------- > --- POWER (1) -------- (None) > --- PROPULSION (2) --- Compact Wheel Compact Wheel > --- UTILITY (2) ------ Huge Storage Unit > --- WEAPON (2) ------- Medium Laser > --- INVENTORY (25) --- Light Treads Light Treads Light Treads Compact Wheel Compact Wheel Compact Wheel Compact Wheel Compact Wheel Compact Wheel Compact Wheel Flying Fortress v7 Small Storage Unit Medium Storage Unit Structural Scanner Modified TNC Hacking Suite Small Laser Small Laser Guided Plasma Cannon Peak State ------------ > --- POWER ------------ Ion Engine > --- PROPULSION ------- Compact Wheel Compact Wheel > --- UTILITY ---------- Huge Storage Unit Weight Redist. System > --- WEAPON ----------- Small Laser EMP Blaster > --- INVENTORY -------- Light Ion Engine Light Treads Light Treads Light Treads Compact Wheel Compact Wheel Compact Wheel Compact Wheel Compact Wheel Compact Wheel Compact Wheel Flying Fortress v7 Small Storage Unit Medium Storage Unit Structural Scanner Modified TNC Hacking Suite Medium Laser Small Laser Small Laser Small Laser Guided Plasma Cannon [Rating: 15] Favorites ----------- Power Ion Engine Engine Ion Engine Propulsion Compact Wheel Treads Light Treads Leg Aluminum Leg Wheel Compact Wheel Utility Huge Storage Unit Device Weight Redist. System Storage Huge Storage Unit Weapon Small Laser Energy Gun Small Laser Ballistic Gun Assault Rifle Launcher EMP Blaster Build | -11 -10 -10 -10 -9 ------- Run | Scr Mat Min Exi Min Slots Evolved . | . . . . . Power . | . . . . . Propulsion . | . . . . . Utility . | . . . . . Weapon . | . . . . . Parts Attached 24 | 2 16 . . 6 Power 5 | . 4 . . 1 Engine 5 | . 4 . . 1 Core . | . . . . . Reactor . | . . . . . Propulsion 8 | 2 6 . . . Treads 2 | . 2 . . . Leg . | . . . . . Wheel 6 | 2 4 . . . Hover . | . . . . . Flight . | . . . . . Utility 3 | . 3 . . . Device 1 | . 1 . . . Storage 2 | . 2 . . . Processor . | . . . . . Hackware . | . . . . . Protection . | . . . . . Artifact . | . . . . . Weapon 8 | . 3 . . 5 Energy Gun 6 | . 3 . . 3 Energy Cannon . | . . . . . Ballistic Gun . | . . . . . Ballistic Cannon . | . . . . . Launcher 2 | . . . . 2 Special Weapon . | . . . . . Impact Weapon . | . . . . . Slashing Weapon . | . . . . . Piercing Weapon . | . . . . . Special Melee Weapon . | . . . . . Unidentified Prototypes . | . . . . . Parts Lost 14 | . 8 . . 6 Power 5 | . 3 . . 2 Propulsion 2 | . 2 . . . Utility 1 | . . . . 1 Weapon 6 | . 3 . . 3 Highest Loss Streak 3 | . 3 . . 3 Average Slot Usage (%) 95 | . 94 100 100 86 Engine 13 | . 13 14 14 10 Treads 1 | . 3 . . . Wheel 25 | . 24 28 28 28 Device 10 | . 9 14 14 6 Storage 14 | . 14 14 14 14 Energy Gun 22 | . 18 28 28 22 Ballistic Gun 4 | . 8 . . . Naked Turns . | . . . . . Heaviest Build 89 | 12 89 87 87 87 Greatest Support 46 | 32 46 38 38 38 Greatest Overweight (x) 2 | . 2 2 2 2 Average Overweight (x) 1 | . 1 2 2 2 Largest Inventory Capacity 25 | 8 25 25 25 25 Average Capacity 21 | 8 20 25 25 25 Most Carried 25 | 6 25 25 25 25 Average Carried 19 | 4 14 25 24 24 Final Capacity 25 | 8 25 25 25 25 Final Carried 25 | 5 25 25 25 22 Class Distribution -------------------- 62% | Scavenger-Mutant 37% | Mutant Dominant Class ---------------- Mutant | -10/Materials Scavenger-Mutant | -10/Mines Scavenger-Mutant | -10/Exiles Scavenger-Mutant | -9/Mines Resources | -11 -10 -10 -10 -9 ----------- Run | Scr Mat Min Exi Min Matter Collected 489 | 232 257 . . . Remotely . | . . . . . Salvage Created 876 | 112 687 . . 77 Parts 38 | 6 32 . . . Haulers Intercepted 1 | . 1 . . . Recyclers Shooed 2 | 1 1 . . . Parts Field Recycled . | . . . . . Retrieved Matter . | . . . . . Parts Self-Destructed . | . . . . . Prevented . | . . . . . Kills | -11 -10 -10 -10 -9 ------- Run | Scr Mat Min Exi Min Combat Hostiles Destroyed 12 | . 9 . . 3 Guns 11 | . 9 . . 2 AOE 1 | . . . . 1 Classes Destroyed 7 | 2 4 . . 1 Worker 2 | . 2 . . . Tunneler 1 | 1 . . . . Hauler 1 | . 1 . . . Recycler 4 | 1 3 . . . Operator 1 | . 1 . . . Grunt 9 | . 9 . . . Assembled 3 | . . . . 3 Best Kill Streak 5 | 2 5 . . 2 Combat Bots Only 4 | . 4 . . 2 Max Kills in Single Turn 1 | 1 1 . . 1 Gunslinging . | . . . . . Exploded 1 | . . . . 1 Melee . | . . . . . Uniques/NPCs Destroyed . | . . . . . Combat | -11 -10 -10 -10 -9 -------- Run | Scr Mat Min Exi Min Damage Taken 1186 | . 767 . . 419 Core 253 | . 151 . . 102 Absorbed by Shields . | . . . . . Core Remaining (%) 100 | 100 . . . . Volleys Fired 79 | 4 59 . . 16 Largest 2 | 2 2 . . 2 Hottest 90 | 60 80 . . 90 Shots Fired 149 | 8 118 . . 23 Gun 144 | 8 118 . . 18 Cannon . | . . . . . Launcher 5 | . . . . 5 Special . | . . . . . Kinetic 49 | 4 45 . . . Thermal 55 | . 37 . . 18 Explosive . | . . . . . Electromagnetic 45 | 4 36 . . 5 Robot Hit Streak 15 | 5 15 . . 3 Robot Miss Streak 6 | 1 5 . . 6 Penetration Max . | . . . . . Secondary Targets . | . . . . . Shots Hit Robots 96 | 6 81 . . 9 Core Hits 39 | 3 29 . . 7 Critical Kills . | . . . . . Critical Parts Destroyed 1 | . 1 . . . Critical Strikes 1 | . 1 . . . Destroy 1 | . 1 . . . Melee Attacks . | . . . . . Impact . | . . . . . Slashing . | . . . . . Piercing . | . . . . . Sneak Attacks . | . . . . . Combat Hostiles . | . . . . . Follow-up Attacks . | . . . . . Damage Inflicted 1511 | 74 1131 . . 306 Guns 1167 | 74 992 . . 101 Cannons . | . . . . . Explosions 344 | . 139 . . 205 Melee . | . . . . . Ramming . | . . . . . Kinetic 411 | 36 375 . . . Thermal 588 | . 425 . . 163 Explosive . | . . . . . Electromagnetic 512 | 38 331 . . 143 Impact . | . . . . . Slashing . | . . . . . Piercing . | . . . . . Highest Corruption 3 | . 1 1 1 3 Average Corruption 1 | . 1 1 1 1 Corruption Purged . | . . . . . Effects 4 | . 2 1 1 . Message Errors 4 | . 2 1 1 . Overload Shots . | . . . . . Overflow Damage 73 | . 10 . . 63 Projectiles . | . . . . . Explosions 73 | . 10 . . 63 Melee . | . . . . . Knockbacks . | . . . . . Impact . | . . . . . Kinetic . | . . . . . Secondary . | . . . . . Self-Inflicted Damage 170 | . 40 . . 130 Shots 7 | . 1 . . 6 Rammed . | . . . . . Targets Rammed . | . . . . . Kicked . | . . . . . Crushed . | . . . . . Highest Temperature 226 | . 226 . . 154 Average Temperature 51 | . 46 . . 77 Received Heat Transfer 463 | . 423 . . 40 Siege Activations . | . . . . . Robots Corrupted . | . . . . . Combat Hostiles . | . . . . . Parts Fried 1 | . 1 . . . Impact Corruptions . | . . . . . Robots Melted . | . . . . . Combat Hostiles . | . . . . . Parts Melted 5 | . 5 . . . Heat Transferred 1124 | . 775 . . 349 Parts Sabotaged . | . . . . . Parts Stolen . | . . . . . Parts Stripped . | . . . . . Power Chain Reactions 4 | . 2 . . 2 Missiles Intercepted . | . . . . . Alert | -11 -10 -10 -10 -9 ------- Run | Scr Mat Min Exi Min Peak Influence 318 | 10 318 57 . 15 Initial 57 | . 6 57 . . Average 105 | 6 144 57 . 2 Maximum Alert Level 1 | . 1 . . . Low Security (%) 87 | 100 81 100 . 100 Level 1 12 | . 18 . . . Level 2 . | . . . . . Level 3 . | . . . . . Level 4 . | . . . . . Level 5 . | . . . . . High Security . | . . . . . Max Security . | . . . . . Squads Dispatched 2 | . 2 . . . Investigation . | . . . . . Extermination . | . . . . . Reinforcement 2 | . 2 . . . Assault . | . . . . . Garrison . | . . . . . Intercept . | . . . . . Construction Impeded . | . . . . . Haulers Reinforced . | . . . . . Cargo Convoy Interrupts . | . . . . . Stealth | -11 -10 -10 -10 -9 --------- Run | Scr Mat Min Exi Min Distress Signals 2 | . 2 . . . Communications Jammed . | . . . . . Distress Signals . | . . . . . Times Spotted 25 | . 19 . . 6 Peak Tracking Total 5 | . 5 . . 3 Tactical Retreats 3 | . 2 . . 1 Traps | -11 -10 -10 -10 -9 ------- Run | Scr Mat Min Exi Min Traps Triggered 2 | . 2 . . . Indirectly . | . . . . . Trap Hack Attempts . | . . . . . Triggered . | . . . . . Disarmed . | . . . . . Reprogrammed . | . . . . . Reused . | . . . . . Traps Extracted . | . . . . . Installed . | . . . . . Triggered . | . . . . . Exploded 2 | . . . 2 . Machines | -11 -10 -10 -10 -9 ---------- Run | Scr Mat Min Exi Min Machines Disabled 2 | . 1 . . 1 Max in Single Turn 1 | . 1 . . 1 Machines Sabotaged . | . . . . . Garrisons Compromised . | . . . . . Overloaded Fab Kills . | . . . . . Fab Network Shutdowns . | . . . . . Hacking | -11 -10 -10 -10 -9 --------- Run | Scr Mat Min Exi Min Machines Accessed 3 | . 1 . 2 . Terminals 1 | . 1 . . . Fabricators . | . . . . . Repair Stations . | . . . . . Recycling Units . | . . . . . Scanalyzers . | . . . . . Garrison Access . | . . . . . Total Hacks 7 | . 5 . 2 . Successful 6 | . 4 . 2 . Failed 1 | . 1 . . . Catastrophic . | . . . . . Database Lockouts . | . . . . . Manual 4 | . 3 . 1 . Terminals 5 | . 5 . . . Fabricators . | . . . . . Repair Stations . | . . . . . Recycling Units . | . . . . . Scanalyzers . | . . . . . Garrison Access . | . . . . . Terminal Hacks 4 | . 2 . 2 . Record 1 | . . . 1 . Prototype ID Bank 1 | . 1 . . . Locate Traps 1 | . 1 . . . EX-Prototype ID Bank 1 | . . . 1 . Fabricator Hacks . | . . . . . Repair Station Hacks . | . . . . . Recycling Unit Hacks . | . . . . . Scanalyzer . | . . . . . Garrison Access Hacks . | . . . . . Unauthorized Hacks 2 | . 2 . . . Terminals 2 | . 2 . . . Assimilate 1 | . 1 . . . Botnet 1 | . 1 . . . Fabricators . | . . . . . Repair Stations . | . . . . . Recycling Units . | . . . . . Scanalyzers . | . . . . . Garrison Access . | . . . . . Data Cores Recovered . | . . . . . Used . | . . . . . Hacking Detections 1 | . 1 . . . Full Trace Events . | . . . . . Feedback Events . | . . . . . Feedback Blocked . | . . . . . Robot Schematics Acquired . | . . . . . Robots Built . | . . . . . Matter . | . . . . . Time . | . . . . . Total Robot Build Rating . | . . . . . Part Schematics Acquired . | . . . . . Parts Built . | . . . . . Matter . | . . . . . Time . | . . . . . Total Part Build Rating . | . . . . . Parts Repaired . | . . . . . Time . | . . . . . Parts Recycled . | . . . . . Recycled Matter . | . . . . . Retrieved Matter . | . . . . . Retrieved Components . | . . . . . Parts Scanalyzed . | . . . . . Part Schematics Acquired . | . . . . . Parts Damaged . | . . . . . Bothacking | -11 -10 -10 -10 -9 ------------ Run | Scr Mat Min Exi Min Used RIF Installer . | . . . . . Robots Hacked . | . . . . . Non-combat . | . . . . . Combat . | . . . . . Robot Hacks Applied . | . . . . . Relay Couplers Released . | . . . . . Robots Rewired . | . . . . . Allies Hacked . | . . . . . Hacks Repelled . | . . . . . Allies | -11 -10 -10 -10 -9 -------- Run | Scr Mat Min Exi Min Total Allies . | . . . . . Largest Group . | . . . . . Highest-Rated Group . | . . . . . Highest-Rated Ally . | . . . . . Total Orders . | . . . . . Ally Attacks . | . . . . . Total Damage . | . . . . . Kills . | . . . . . Allies Corrupted . | . . . . . Allies Melted . | . . . . . Intel | -11 -10 -10 -10 -9 ------- Run | Scr Mat Min Exi Min Robot Analysis Total . | . . . . . Derelict Logs Recovered . | . . . . . Drone Launches . | . . . . . Drone Recoveries . | . . . . . Exploration | -11 -10 -10 -10 -9 ------------- Run | Scr Mat Min Exi Min Turns Passed 1058 | 35 524 106 279 114 Spaces Moved 570 | 20 221 81 211 37 Core . | . . . . . Treads 2 | . 2 . . . Legs . | . . . . . Wheels 568 | 20 219 81 211 37 Hover . | . . . . . Flight . | . . . . . Fastest Speed 100 | 100 100 130 130 130 Average Speed 125 | 100 121 130 130 130 Slowest Speed 260 | 100 260 130 130 130 Overloaded Moves . | . . . . . Propulsion Burnouts . | . . . . . Robots Hopped . | . . . . . Cave-ins Triggered . | . . . . . Exploration Rate (%) 28 | 2 51 19 59 13 Regions Visited 4 Branch Regions 3 Pre-discovered Areas 1 | . . . 1 . Known Exits Taken . | . . . . . Unknown Exits Taken 4 | 1 1 1 1 . Scrap Searched 3 | . . 2 . 1 Spaces Dug . | . . . . . Terrain Destroyed 9 | . 4 . . 5 Melee . | . . . . . Projectile . | . . . . . AOE 9 | . 4 . . 5 Terrain Rammed . | . . . . . Walls Destroyed . | . . . . . Machines Disabled . | . . . . . Actions | -11 -10 -10 -10 -9 --------- Run | Scr Mat Min Exi Min Total 763 | 28 354 83 219 79 Wait 51 | . 32 1 . 18 Move 566 | 19 220 80 210 37 Hop . | . . . . . Pick Up 31 | 1 25 1 3 1 Fast Attach 3 | . 3 . . . Attach 12 | 2 7 . . 3 Detach 1 | . 1 . . . Swap 9 | . 6 . . 3 Drop 11 | 2 1 1 6 1 Fire 79 | 4 59 . . 16 Melee . | . . . . . Ram . | . . . . . Kick . | . . . . . Crush . | . . . . . Escape Stasis . | . . . . . Rewire . | . . . . . Trap . | . . . . . Miscellaneous . | . . . . . Route ------- -11/Scrapyard -10/Materials -10/Mines (discovered 2 exits: [*Mat] / *Exi) -10/Exiles (discovered 2 exits: [*Min x2]) -9/Mines History --------- Turn | Location | Event 13 | -11/Scrapyard | Discovered new exit (range 3) 36 | -11/Scrapyard | Entered Materials 185 | -10/Materials | Lost 3 parts (1p1n1w) 300 | -10/Materials | Build established: Mutant 359 | -10/Materials | Core integrity fell below 50% 475 | -10/Materials | Discovered new exit (range 14) 560 | -10/Materials | Entered Mines 576 | -10/Mines | Met a Derelict bent on vengeance 601 | -10/Mines | Discovered new exit (range 7) 659 | -10/Mines | Deemed a non-threat by the Exiles lab entrance 661 | -10/Mines | Discovered new exit (range 5) 666 | -10/Mines | Entered Exiles 673 | -10/Exiles | Build established: Scavenger-Mutant 685 | -10/Exiles | Discovered new exit (range 15) 704 | -10/Exiles | Met 8R-AWN 724 | -10/Exiles | Met EX-HEX 759 | -10/Exiles | Met EX-BIN 773 | -10/Exiles | Aligned with FarCom system 774 | -10/Exiles | Given EX-Vault access code 804 | -10/Exiles | Opened EX-Vault 814 | -10/Exiles | Found Flying Fortress v7 820 | -10/Exiles | Found Gui. Plasma Cannon 826 | -10/Exiles | Found Modified TNC 852 | -10/Exiles | Warned to stay clear of 0b10 Research branches 863 | -10/Exiles | Exiles lab attacked by MAIN.C 895 | -10/Exiles | Learned location of Zion (-7) 935 | -10/Exiles | Discovered new exit (range 10) 945 | -10/Exiles | Stole three prototypes: Flying Fortress v7, Modified TNC, Gui. Plasma Cannon 945 | -10/Exiles | Entered Mines 946 | -9/Mines | Assembled infested the area 1030 | -9/Mines | Lost 3 parts (1p1u1w) 1036 | -9/Mines | Core integrity fell below 20% 1059 | -9/Mines | Destroyed by as-71395 with Assembled Blade Last Messages --------------- 00999_ Sml. Laser destroyed. 00999_ Destroyed Sml. Laser. 01003_ Knocked back. 01006_ as-50479 sneak attacks. 01006_ K-01 Serf system corrupted by crushing effect. 01006_ K-01 Serf destroyed. 01010_ Knocked back. 01010_ Destroyed Asb. Hover Unit. 01032_ Destroyed Asb. Maul. 01037_ K-01 Serf collects debris. 01040_ Sml. Laser destroyed. 01041_ K-01 Serf collects debris. 01048_ as-00232 destroyed. 01049_ as-71395 sneak attacks. 01051_ as-50479 destroyed. 01052_ K-01 Serf destroyed. 01058_ Chain reaction triggered in Lgt. Ion Engine. 01058_ EMP Blaster destroyed. 01058_ Destroyed EMP Blaster. 01058_ Destroyed Asb. Hover Unit. Map ----- +----------------------------------------------------+ | ??# #?????????????????????? | | ??# #?????????????????????? | | ??# #?????????????????????? | | ??# #?????????????????????? | | ??# #?????????????????????? | | ??# """ #?????????????????????? | | ??# """ #?????????????????????? | | ??# """ #?????????????????????? | | ??# #?????????????????????? | | ??#### ####?????????????????????? | | ?????# #????????????????????????? | | ?????# #????????????????????????? | | ?????# #????????????????????????? | | ?????# #????????????????????????? | | ?????# #????????????????????????? | | ?????# #????????????????????????? | | ?????# #????????????????????????? | | ?????# #????????????????????????? | | ?????# #???????????#????????????? | | ?????# #####?????? #????????????? | | ?????# #????? #????????????? | | ?????####= #??### #????????????? | | ???????## #?## #????????????? | | ??????## ### #????????????? | | ??????# ! a % ##????????????? | | ??????# @a %%! "" ##????????????? | | ?????#; %"" #????????????? | | ?????#; %"" ??????????? | | ?????## ""% ?????????? | | ??????## #####????????? | | ???????### #????????????? | | ?????????## ##????????????? | | ??????????# ##?????????????? | | ??????????## #####??????????????? | | ???????????###??????????????????? | | ????????????????????????????????? | | ????????????????????????????????? | | ????????????????????????????????? | | | | | | | | | | | | | | | | | | | | | | | | | +----------------------------------------------------+ Best States ------------- Heat Dissipation 25 Energy Generation 10 Energy Capacity 250 Matter Stores 300 Matter Capacity 300 Sight Range 16 Terrain Scan Density 10 Additional Mass Support 6 Evasion (%) 40 Recoil Reduction 2 Item Schematics ----------------- None Robot Schematics ------------------ None Fabricated ------------ Nothing Alien Tech Used ----------------- None Achievements -------------- None Challenges ------------ None Game ------ Seed GaussVariableGravjet Manual? 0 Play Time 00:14:27 Cumulative 205.6 hours Start 2021.07.06 @ 12:08:17 End 2021.07.06 @ 12:44:05 Sessions 1 Manual Loads 0 Difficulty Rogue Special Mode None Game No. 122 Rogue 122 Adventurer 0 Explorer 0 Win Type - Total 3 Types 2/0/0/1/0/0/0/0/0 Lore% 60 Gallery% 72 Achievement% 47 Wizard Run 0 Options --------- ASCII 0 Keyboard 0 Movement Numpad Keybinds 0 Fullscreen 1 Font 18/SmallcapsGlow Map View 76x50 Tactical HUD 1 Map Filters NONE Filters NONE Steam 1 RUN: 61de31d0-a37a-48bc-8646-550123f27a9a